bitfinex-derivatives/quotes_SOLF0:USTF0_20250421
["timestamp","ask_amount","ask_price","bid_price","bid_amount"]
[1745209699617,5.70127474,139.81,139.76,5.70127474]
[1745209699818,31.98127474,139.82,139.76,5.70127474]
[1745209700013,7.1546,139.79,139.76,5.70127474]
[1745209700314,31.98127474,139.82,139.76,5.70127474]
[1745209700516,0.04664062,139.79,139.78,5.70127474]
[1745209700817,0.04664062,139.79,139.77,5.70127474]
[1745209701712,26.28,139.78,139.76,0.05019206]
[1745209703217,7.1551,139.77,139.76,0.05019206]
[1745209703428,26.28,139.78,139.76,0.05019206]
[1745209704017,26.28,139.78,139.76,5.7514668]
[1745209704829,33.4346,139.78,139.76,5.7514668]
[1745209705017,26.28,139.78,139.76,5.7514668]
[1745209705221,26.28,139.78,139.76,0.05019206]
[1745209705421,7.1551,139.77,139.76,0.05019206]
[1745209707420,33.4346,139.78,139.76,0.05019206]
[1745209708516,0.04664062,139.79,139.76,5.7514668]
[1745209708816,0.04664062,139.79,139.78,5.70127474]
[1745209712122,0.04664062,139.79,139.77,7.1547]
[1745209712426,0.04664062,139.79,139.77,12.85597474]
[1745209712922,0.04664062,139.79,139.77,5.70127474]
[1745209713221,0.04664062,139.79,139.76,0.05019206]
[1745209713420,7.20114062,139.79,139.76,0.05019206]
[1745209713620,0.04664062,139.79,139.76,0.05019206]
[1745209716223,7.1551,139.77,139.76,0.05019206]
[1745209716422,33.4351,139.77,139.76,0.05019206]
[1745209723922,26.28,139.78,139.76,0.05019206]
[1745209725628,26.32664062,139.79,139.76,0.05019206]
[1745209725823,26.32664062,139.79,139.76,5.7514668]
[1745209726125,26.32664062,139.79,139.76,12.9066668]
[1745209727726,33.48104062,139.79,139.76,5.7514668]
[1745209729728,7.1548,139.78,139.76,5.7514668]
[1745209730729,7.1551,139.77,139.76,0.05019206]
[1745209731121,26.32664062,139.79,139.76,0.05019206]
[1745209731327,7.1549,139.78,139.76,0.05019206]
[1745209732529,33.48094062,139.79,139.76,7.20579206]
[1745209732729,26.32664062,139.79,139.76,0.05019206]
[1745209733530,26.32664062,139.79,139.76,7.20579206]
[1745209734122,33.48104062,139.79,139.76,7.20579206]
[1745209735432,33.48104062,139.79,139.76,0.05019206]
[1745209737939,7.1547,139.78,139.76,0.05019206]
[1745209742738,7.1551,139.77,139.76,0.05019206]
[1745209749845,7.1548,139.78,139.76,0.05019206]
[1745209750352,5.70127474,139.77,139.76,0.05019206]
[1745209750545,12.85637474,139.77,139.76,0.05019206]
[1745209751651,7.1551,139.77,139.76,0.05019206]
[1745209758352,12.85637474,139.77,139.76,0.05019206]
[1745209760249,7.1567,139.74,139.71,12.85927474]
[1745209760454,7.1567,139.74,139.71,5.70127474]
[1745209760749,26.28,139.76,139.71,5.70127474]
[1745209760952,7.1567,139.74,139.71,5.70127474]
[1745209761655,0.0482637,139.74,139.71,5.75446413]
[1745209764055,0.0482637,139.74,139.72,7.1577]
[1745209764257,0.0482637,139.74,139.73,5.70127474]
[1745209765255,0.0482637,139.74,139.73,12.85847474]
[1745209771464,0.0482637,139.74,139.73,7.1572]
[1745209771762,0.0482637,139.74,139.72,12.85877474]
[1745209771963,0.0482637,139.74,139.72,5.70127474]
[1745209773662,0.0482637,139.74,139.72,12.85867474]
[1745209775267,7.2049637,139.74,139.72,5.70127474]
[1745209776070,0.0482637,139.74,139.72,12.85897474]
[1745209777167,0.0482637,139.74,139.72,5.70127474]
[1745209780369,0.0482637,139.74,139.71,0.05318939]
[1745209780966,7.2051637,139.74,139.71,0.05318939]
[1745209781870,7.1573,139.73,139.71,0.05318939]
[1745209784070,7.2050637,139.74,139.71,12.91256413]
[1745209785773,0.0482637,139.74,139.72,7.1576]
[1745209786669,0.0482637,139.74,139.73,12.85847474]
[1745209789376,0.0482637,139.74,139.73,5.70127474]
[1745209789673,0.0482637,139.74,139.72,7.1575]
[1745209790570,0.0482637,139.74,139.71,12.91246413]
[1745209792675,7.2049637,139.74,139.71,12.91246413]
[1745209792874,0.0482637,139.74,139.71,5.75446413]
[1745209793876,7.2052637,139.74,139.71,12.91266413]
[1745209795276,7.2052637,139.74,139.71,7.21138939]
[1745209800082,7.1572,139.73,139.71,0.05318939]
[1745209800378,0.0482637,139.74,139.71,0.05318939]
[1745209800679,7.1576,139.73,139.71,0.05318939]
[1745209801386,7.1577,139.72,139.71,0.05318939]
[1745209801775,33.4177,139.72,139.68,12.86067474]
[1745209802984,33.4177,139.72,139.69,0.04512413]
[1745209803580,26.26,139.72,139.69,0.04512413]
[1745209803781,5.70127474,139.71,139.65,5.70127474]
[1745209804083,5.70127474,139.71,139.64,5.70127474]
[1745209804281,5.70127474,139.69,139.62,5.70127474]
[1745209804482,26.26,139.68,139.62,5.70127474]
[1745209804984,0.04896875,139.66,139.64,0.04519634]
[1745209805483,7.21006875,139.66,139.64,0.04519634]
[1745209806485,0.04896875,139.66,139.64,0.04519634]
[1745209807084,0.04896875,139.66,139.64,7.20659634]
[1745209807588,0.04896875,139.66,139.64,0.04519634]
[1745209807787,0.04896875,139.66,139.65,7.1613]
[1745209807984,0.04896875,139.66,139.64,0.04519634]
[1745209808485,0.04896875,139.66,139.64,7.20659634]
[1745209809087,0.04896875,139.66,139.65,7.1613]
[1745209809286,0.04896875,139.66,139.64,0.04519634]
[1745209811187,7.20986875,139.66,139.64,0.04519634]
[1745209814588,0.04896875,139.66,139.64,0.04519634]
[1745209816084,0.04896875,139.66,139.64,5.74647108]
[1745209816789,0.04896875,139.66,139.65,7.1613]
[1745209820592,0.04896875,139.66,139.64,7.20679634]
[1745209820794,0.04896875,139.66,139.64,12.90807108]
[1745209825299,0.04896875,139.66,139.64,7.20679634]
[1745209825598,0.04896875,139.66,139.64,0.04519634]
[1745209826900,0.04896875,139.66,139.64,7.20699634]
[1745209830503,0.04896875,139.66,139.64,0.04519634]
[1745209830905,0.04896875,139.66,139.64,7.20689634]
[1745209832805,5.70127474,139.65,139.59,5.70127474]
[1745209832999,26.26,139.64,139.59,5.70127474]
[1745209833306,5.70127474,139.63,139.59,5.70127474]
[1745209833501,12.86387474,139.63,139.59,12.86517474]
[1745209833697,12.86387474,139.63,139.59,7.1639]
[1745209834111,7.21433253,139.62,139.6,0.05164872]
[1745209834803,0.05143253,139.62,139.6,0.05164872]
[1745209836104,7.1633,139.61,139.6,0.05164872]
[1745209836699,7.1639,139.6,139.56,12.86667474]
[1745209837006,7.1639,139.6,139.56,5.70127474]
[1745209837806,0.05418945,139.59,139.57,0.04696732]
[1745209838403,0.05418945,139.59,139.57,7.21196732]
[1745209839503,0.05418945,139.59,139.58,12.86617474]
[1745209843408,0.05418945,139.59,139.57,7.21236732]
[1745209844909,0.05418945,139.59,139.58,7.1649]
[1745209845113,0.05418945,139.59,139.57,0.04696732]
[1745209845709,0.05418945,139.59,139.57,7.21216732]
[1745209846607,7.21858945,139.59,139.57,0.04696732]
[1745209846912,0.05418945,139.59,139.53,5.70127474]
[1745209847111,7.63747474,139.59,139.53,5.70127474]
[1745209847311,7.63747474,139.59,139.53,12.86837474]
[1745209847912,7.166,139.56,139.53,5.70127474]
[1745209848110,7.166,139.56,139.55,0.048692]
[1745209849515,26.3095847,139.57,139.55,0.048692]
[1745209850725,33.4750847,139.57,139.55,0.048692]
[1745209852429,26.3095847,139.57,139.55,0.048692]
[1745209853219,33.4746847,139.57,139.55,0.048692]
[1745209856122,7.1652,139.56,139.55,0.048692]
[1745209856327,32.01085944,139.57,139.51,5.70127474]
[1745209856527,31.96127474,139.57,139.51,5.70127474]
[1745209856826,7.166,139.55,139.51,12.86887474]
[1745209857121,7.166,139.55,139.51,5.70127474]
[1745209857336,0.04512742,139.54,139.52,0.0508156]
[1745209857731,0.04512742,139.54,139.53,5.70127474]
[1745209858728,0.04512742,139.54,139.53,12.86797474]
[1745209859330,0.04512742,139.54,139.53,7.1667]
[1745209860635,26.28,139.59,139.56,7.1648]
[1745209861332,33.4437,139.59,139.56,7.1648]
[1745209861533,26.28,139.59,139.55,5.70127474]
[1745209861735,26.3271808,139.59,139.57,5.70127474]
[1745209861934,0.0471808,139.59,139.57,5.70127474]
[1745209862440,0.0471808,139.59,139.57,7.1647]
[1745209862631,0.0471808,139.59,139.56,5.75333495]
[1745209863336,0.0471808,139.59,139.56,0.05206021]
[1745209863530,0.0471808,139.59,139.56,5.75333495]
[1745209864238,0.0471808,139.59,139.58,7.1642]
[1745209865037,0.0471808,139.59,139.58,12.86547474]
[1745209866838,593.62,139.64,139.62,7.1619]
[1745209867135,593.62,139.64,139.59,5.70127474]
[1745209867342,593.62,139.64,139.61,7.1624]
[1745209867840,593.67093473,139.64,139.61,7.21121669]
[1745209869745,593.67093473,139.64,139.62,7.1621]
[1745209871141,593.67093473,139.64,139.63,7.1616]
[1745209871444,26.33093473,139.64,139.61,0.04881669]
[1745209871640,26.33093473,139.64,139.61,7.21111669]
[1745209872446,33.49213473,139.64,139.61,0.04881669]
[1745209872738,32.03220947,139.64,139.61,0.04881669]
[1745209872957,5.70127474,139.62,139.61,0.04881669]
[1745209874249,12.86337474,139.62,139.61,0.04881669]
[1745209877847,12.86297474,139.63,139.61,0.04881669]
[1745209878151,5.70127474,139.63,139.61,0.04881669]
[1745209878351,7.1621,139.62,139.61,0.04881669]
[1745209883753,7.1635,139.6,139.56,12.86627474]
[1745209883952,26.26,139.6,139.56,12.86627474]
[1745209884256,26.26,139.6,139.56,5.70127474]
[1745209884454,26.26,139.6,139.57,7.1643]
[1745209884655,26.26,139.6,139.56,5.70127474]
[1745209884952,0.05020274,139.59,139.58,5.70127474]
[1745209885147,26.26,139.63,139.58,5.70127474]
[1745209885354,26.26,139.63,139.6,5.70127474]
[1745209885660,0.04841404,139.62,139.61,7.1623]
[1745209886359,0.04841404,139.62,139.61,12.86357474]
[1745209886862,0.04841404,139.62,139.61,7.1623]
[1745209887071,0.04841404,139.62,139.61,12.86357474]
[1745209890658,0.04841404,139.62,139.61,7.1623]
[1745209894075,26.26,139.66,139.63,7.1611]
[1745209895266,26.30806372,139.66,139.63,7.20859243]
[1745209895871,33.46816372,139.66,139.63,7.20859243]
[1745209896171,26.30806372,139.66,139.64,7.1611]
[1745209896872,26.30806372,139.66,139.63,7.20889243]
[1745209897069,26.30806372,139.66,139.63,0.04749243]
[1745209898271,33.46826372,139.66,139.63,0.04749243]
[1745209899468,33.46826372,139.66,139.63,7.20909243]
[1745209900171,5.70127474,139.65,139.63,0.04749243]
[1745209900768,7.1623,139.62,139.59,7.1634]
[1745209901176,5.70127474,139.63,139.59,7.1634]
[1745209901476,12.86307474,139.63,139.59,7.1634]
[1745209901776,0.05202357,139.62,139.6,0.04598723]
[1745209902477,7.21422357,139.62,139.6,0.04598723]
[1745209902778,33.47422357,139.62,139.6,0.04598723]
[1745209903878,7.1626,139.61,139.6,0.04598723]
[1745209904276,12.86387474,139.61,139.6,0.04598723]
[1745209907477,5.70127474,139.61,139.56,7.165]
[1745209907681,7.1634,139.6,139.56,7.165]
[1745209908382,32.01329831,139.62,139.55,5.70127474]
[1745209908784,32.01329831,139.62,139.57,0.04896171]
[1745209909086,0.05202357,139.62,139.61,5.70127474]
[1745209910183,0.05202357,139.62,139.61,12.86387474]
[1745209914579,31.96127474,139.68,139.61,5.70127474]
[1745209914777,31.96127474,139.68,139.63,5.70127474]
[1745209914986,39.12077474,139.68,139.63,5.70127474]
[1745209915188,33.4195,139.68,139.64,7.1606]
[1745209915487,39.12077474,139.68,139.64,7.1606]
[1745209915882,0.04603214,139.67,139.65,0.04835339]
[1745209918192,0.04603214,139.67,139.65,7.20895339]
[1745209919791,0.04603214,139.67,139.65,0.04835339]
[1745209920391,0.04603214,139.67,139.65,7.20855339]
[1745209922293,0.04603214,139.67,139.65,0.04835339]
[1745209923496,0.04603214,139.67,139.65,7.20885339]
[1745209926000,0.04603214,139.67,139.65,0.04835339]
[1745209928803,5.74730688,139.67,139.65,0.04835339]
[1745209929509,12.90700688,139.67,139.65,0.04835339]
[1745209930900,7.1601,139.66,139.65,0.04835339]
[1745209931095,5.74730688,139.67,139.65,0.04835339]
[1745209931297,12.90690688,139.67,139.65,0.04835339]
[1745209933101,5.74730688,139.67,139.65,0.04835339]
[1745209934107,0.04603214,139.67,139.65,0.04835339]
[1745209935409,0.04603214,139.67,139.66,7.1601]
[1745209936614,0.04603214,139.67,139.65,7.20875339]
[1745209939513,0.04603214,139.67,139.65,7.20865339]
[1745209940012,0.04603214,139.67,139.66,7.1601]
[1745209942012,51.52105555,139.75,139.66,33.4]
[1745209942203,51.52105555,139.75,139.7,5.70127474]
[1745209942407,51.52105555,139.75,139.72,7.1566]
[1745209942904,51.52105555,139.75,139.73,7.1562]
[1745209943114,51.56773154,139.75,139.73,7.1562]
[1745209943413,51.56773154,139.75,139.72,5.75031609]
[1745209944108,25.32773154,139.75,139.74,12.85727474]
[1745209944815,0.04667599,139.75,139.74,12.85727474]
[1745209947212,0.04667599,139.75,139.74,7.156]
[1745209959022,0.04667599,139.75,139.73,7.1563]
[1745209959320,0.04667599,139.75,139.72,0.04904135]
[1745209959820,0.04667599,139.75,139.74,7.156]
[1745209960014,0.04667599,139.75,139.72,0.04904135]
[1745209960423,5.70127474,139.73,139.72,0.04904135]
[1745209960717,26.24,139.74,139.72,0.04904135]
[1745209961118,26.24,139.74,139.72,5.75031609]
[1745209961724,26.24,139.74,139.72,0.04904135]
[1745209962223,26.24,139.74,139.73,7.1565]
[1745209964533,0.04667599,139.75,139.73,7.1565]
[1745209966028,0.04667599,139.75,139.74,7.156]
[1745209981738,0.04667599,139.75,139.74,12.85727474]
[1745209982040,31.92127474,139.8,139.74,5.70127474]
[1745209982442,31.92127474,139.8,139.77,7.1541]
[1745209982842,26.22,139.8,139.78,7.1536]
[1745209983045,26.26813625,139.8,139.78,7.1536]
[1745209983545,26.26813625,139.8,139.77,7.20747503]
[1745209986744,26.26813625,139.8,139.77,0.05327503]
[1745209987545,26.26813625,139.8,139.78,7.1534]
[1745209988645,26.26813625,139.8,139.79,7.1534]
[1745209989646,26.26813625,139.8,139.78,7.1538]
[1745209994051,0.04813625,139.8,139.79,7.1534]
[1745209995048,3.625e-05,139.8,139.79,7.1534]
[1745209996854,0.79797,139.82,139.81,7.1524]
[1745209997158,0.79797,139.82,139.81,12.85367474]
[1745209999751,26.22,139.86,139.82,7.1519]
[1745210000056,7.67727474,139.89,139.84,5.70127474]
[1745210000057,26.2,139.89,139.84,5.70127474]
[1745210000246,26.2,139.89,139.78,32.1795]
[1745210000247,26.2,139.89,139.85,5.70127474]
[1745210000652,26.2,139.89,139.84,5.70127474]
[1745210001062,0.05040411,139.88,139.85,0.05458448]
[1745210001255,0.05040411,139.88,139.86,7.1498]
[1745210002364,293.35957328,139.98,139.86,5.70127474]
[1745210002653,618.02105555,139.94,139.88,5.70127474]
[1745210002853,618.02105555,139.94,139.91,5.70127474]
[1745210003456,618.02105555,139.94,139.9,7.1474]
[1745210003656,618.02105555,139.94,139.91,0.04964488]
[1745210003657,592.79107145,139.94,139.91,0.04964488]
[1745210008569,7.1466,139.93,139.91,0.04964488]
[1745210011367,7.1467,139.92,139.91,0.04964488]
[1745210011566,5.70127474,139.93,139.87,5.70127474]
[1745210011867,7.1479,139.9,139.86,5.70127474]
[1745210012070,33.3479,139.9,139.86,5.70127474]
[1745210012768,0.05104029,139.89,139.87,0.04819611]
[1745210013963,7.19934029,139.89,139.87,0.04819611]
[1745210014868,7.1488,139.88,139.87,0.04819611]
[1745210015073,11.65131503,139.89,139.82,26.2]
[1745210015371,7.1498,139.86,139.82,7.1518]
[1745210016164,7.20382399,139.85,139.82,7.1518]
[1745210016474,0.05342399,139.85,139.83,0.04662698]
[1745210016670,5.75469873,139.85,139.83,0.04662698]
[1745210017364,12.90519873,139.85,139.83,0.04662698]
[1745210018669,5.75469873,139.85,139.83,0.04662698]
[1745210022069,0.05342399,139.85,139.83,7.19792698]
[1745210022368,0.05342399,139.85,139.83,0.04662698]
[1745210024167,5.75469873,139.85,139.83,0.04662698]
[1745210024771,12.90529873,139.85,139.83,0.04662698]
[1745210028672,5.75469873,139.85,139.79,7.1529]
[1745210028876,3.8057,139.84,139.79,7.1529]
[1745210029476,7.1515,139.83,139.8,7.1528]
[1745210029974,7.1515,139.83,139.8,7.20360808]
[1745210030175,10.9566,139.84,139.81,7.1522]
[1745210030370,3.8057,139.84,139.8,5.75208282]
[1745210030575,0.05342399,139.85,139.8,5.75208282]
[1745210030777,0.05342399,139.85,139.82,7.1514]
[1745210035879,0.05342399,139.85,139.83,7.1513]
[1745210036082,7.20382399,139.85,139.8,0.05080808]
[1745210036378,0.05342399,139.85,139.82,7.1517]
[1745210037775,7.20382399,139.85,139.82,7.1517]
[1745210037981,0.05342399,139.85,139.8,5.75208282]
[1745210038584,0.05342399,139.85,139.82,7.1518]
[1745210039675,12.85227474,139.84,139.8,7.20350808]
[1745210040581,5.70127474,139.84,139.81,7.1523]
[1745210040781,0.05342399,139.85,139.8,0.05080808]
[1745210042284,7.20382399,139.85,139.82,7.1518]
[1745210043085,0.05342399,139.85,139.82,7.1518]
[1745210044582,0.05342399,139.85,139.81,5.70127474]
[1745210045082,0.05342399,139.85,139.82,7.1518]
[1745210045784,0.05342399,139.85,139.81,5.70127474]
[1745210046686,0.05342399,139.85,139.83,7.1511]
[1745210048380,0.05342399,139.85,139.84,7.1508]
[1745210048581,93.61614815,139.94,139.84,26.2]
[1745210048786,93.61614815,139.94,139.91,5.70127474]
[1745210048787,19.05325555,139.93,139.91,5.70127474]
[1745210048988,67.41614815,139.94,139.93,7.1462]
[1745210049182,67.41614815,139.94,139.93,12.84747474]
[1745210049388,101.1242222,139.96,139.93,5.70127474]
[1745210049588,101.1242222,139.96,139.95,5.70127474]
[1745210049886,101.1727527,139.96,139.95,5.70127474]
[1745210050290,101.1727527,139.96,139.95,12.84647474]
[1745210051294,168.5403703,139.97,139.96,7.1447]
[1745210051889,26.2,140.0,139.97,7.1439]
[1745210052188,26.2,140.0,139.97,12.84517474]
[1745210052590,26.25109611,140.0,139.97,12.89386795]
[1745210053987,26.25109611,140.0,139.97,7.19259321]
[1745210054196,26.25109611,140.0,139.97,0.04869321]
[1745210054393,31.95237085,140.0,139.97,0.04869321]
[1745210055294,7.1435,139.99,139.97,0.04869321]
[1745210055492,5.70127474,139.98,139.97,0.04869321]
[1745210055792,5.70127474,139.98,139.94,7.1456]
[1745210056196,12.84507474,139.98,139.94,7.1456]
[1745210056696,0.05362515,139.97,139.95,0.05086271]
[1745210063903,7.19792515,139.97,139.95,0.05086271]
[1745210067206,0.05362515,139.97,139.95,0.05086271]
[1745210067401,0.05362515,139.97,139.96,12.84597474]
[1745210068905,0.05362515,139.97,139.95,0.05086271]
[1745210069608,7.19822515,139.97,139.95,0.05086271]
[1745210071306,7.1447,139.96,139.95,0.05086271]
[1745210072204,7.19802515,139.97,139.95,0.05086271]
[1745210074508,0.05362515,139.97,139.95,0.05086271]
[1745210075011,0.05362515,139.97,139.96,12.84597474]
[1745210076107,26.2,140.0,139.99,7.1432]
[1745210076406,26.2,140.0,139.97,5.70127474]
[1745210076609,26.2,140.0,139.98,7.1435]
[1745210077107,26.24683004,140.0,139.98,7.1957771]
[1745210077312,26.24683004,140.0,139.99,7.1432]
[1745210078410,26.24683004,140.0,139.98,7.1958771]
[1745210079415,26.24683004,140.0,139.99,7.1432]
[1745210081111,26.24683004,140.0,139.99,12.84447474]
[1745210081414,0.04683004,140.0,139.99,12.84447474]
[1745210083816,30.0169,140.06,140.03,7.1408]
[1745210084017,30.0169,140.06,140.03,12.84207474]
[1745210084917,30.06854698,140.06,140.03,12.89239307]
[1745210085319,30.06854698,140.06,140.03,5.75159307]
[1745210086214,28.09964698,140.06,140.03,12.89239307]
[1745210086420,0.05164698,140.06,140.03,26.21031833]
[1745210086725,0.05164698,140.06,140.05,5.70127474]
[1745210087819,0.05164698,140.06,140.03,0.05031833]
[1745210088018,5.75292172,140.06,140.03,0.05031833]
[1745210088620,7.1406,140.04,140.03,0.05031833]
[1745210089321,9.2009,140.05,140.03,0.05031833]
[1745210092923,7.1406,140.04,140.03,0.05031833]
[1745210098930,11.1775,140.05,140.03,0.05031833]
[1745210099130,4.0372,140.05,140.03,0.05031833]
[1745210100028,5.70127474,140.04,139.98,26.16]
[1745210100234,4.0372,140.05,139.99,5.70127474]
[1745210100530,7.1408,140.04,140.0,7.1423]
[1745210100829,7.1408,140.04,139.99,5.70127474]
[1745210101028,2.0607,140.05,140.02,7.1415]
[1745210101233,0.05330326,140.03,140.02,7.1415]
[1745210107434,2.0065,140.08,140.01,5.70127474]
[1745210107635,2.0065,140.08,140.06,5.70127474]
[1745210107833,2.0065,140.08,140.07,7.1391]
[1745210114441,0.04588604,140.09,140.08,7.1386]
[1745210115444,0.04588604,140.09,140.06,5.74840058]
[1745210115841,0.04588604,140.09,140.08,7.1386]
[1745210117739,0.04588604,140.09,140.08,12.83987474]
[1745210120544,0.04588604,140.09,140.08,7.1386]
[1745210122747,0.04588604,140.09,140.08,12.83987474]
[1745210126144,26.14,140.13,140.12,7.1365]
[1745210126448,26.14,140.13,140.1,5.70127474]
[1745210126751,26.14,140.13,140.11,7.1371]
[1745210127354,26.19452426,140.13,140.11,0.05009498]
[1745210128250,26.19452426,140.13,140.12,7.1365]
[1745210132954,26.19452426,140.13,140.11,7.18689498]
[1745210135153,26.19452426,140.13,140.11,0.05009498]
[1745210135467,5.70127474,140.12,140.06,5.70127474]
[1745210135648,7.1373,140.11,140.07,7.1386]
[1745210136360,0.05329328,140.1,140.08,0.05396816]
[1745210136858,7.19089328,140.1,140.08,0.05396816]
[1745210137157,26.12,140.09,140.04,5.70127474]
[1745210137758,26.12,140.09,140.03,26.12]
[1745210137759,26.12,140.09,140.06,5.70127474]
[1745210138167,26.12,140.09,140.06,5.74630694]
[1745210138662,26.12,140.09,140.07,7.1388]
[1745210139659,26.12,140.09,140.06,0.0450322]
[1745210139858,33.72907474,140.09,140.06,0.0450322]
[1745210140062,40.86737474,140.09,140.06,0.0450322]
[1745210140362,33.72907474,140.09,140.06,0.0450322]
[1745210141374,7.1387,140.08,140.06,0.0450322]
[1745210141965,40.86717474,140.09,140.06,7.1845322]
[1745210142164,40.86717474,140.09,140.06,0.0450322]
[1745210143672,26.12,140.09,140.06,5.74630694]
[1745210144161,26.12,140.09,140.06,12.88560694]
[1745210147470,26.12,140.09,140.07,7.1391]
[1745210152269,2.01029328,140.1,140.07,7.1391]
[1745210153969,9.14789328,140.1,140.07,7.1391]
[1745210154270,2.01029328,140.1,140.07,7.1391]
[1745210156174,28.13029328,140.1,140.07,7.1391]
[1745210159578,28.13029328,140.1,140.08,7.1385]
[1745210159774,5.70127474,140.09,139.94,409.95752821]
[1745210160074,5.70127474,140.07,139.99,5.70127474]
[1745210160277,7.1409,140.04,140.0,7.1423]
[1745210160580,5.70127474,140.05,139.94,38.38308433]
[1745210160776,1.9291,140.03,139.98,5.70127474]
[1745210161078,0.05039842,140.01,139.98,5.75327638]
[1745210161480,0.05039842,140.01,139.98,12.89667638]
[1745210163688,5.75167316,140.01,139.98,0.05200164]
[1745210164182,7.1431,140.0,139.98,0.05200164]
[1745210164385,0.05039842,140.01,139.91,591.54]
[1745210164687,26.12,140.02,139.93,5.70127474]
[1745210164688,7.74327474,139.99,139.93,5.70127474]
[1745210164981,33.2641,139.98,139.94,7.1457]
[1745210165187,26.12,139.98,139.92,5.70127474]
[1745210165379,7.1447,139.97,139.92,12.84797474]
[1745210165584,0.05365479,139.96,139.94,0.04712541]
[1745210166186,7.19865479,139.96,139.94,0.04712541]
[1745210167485,0.05365479,139.96,139.94,0.04712541]
[1745210168184,7.19835479,139.96,139.94,0.04712541]
[1745210168383,0.05365479,139.96,139.94,0.04712541]
[1745210171298,7.19845479,139.96,139.94,0.04712541]
[1745210173995,0.05365479,139.96,139.94,0.04712541]
[1745210174797,0.05365479,139.96,139.94,5.74840015]
[1745210175696,0.05365479,139.96,139.95,7.1452]
[1745210180297,26.14,140.03,139.95,7.14]
[1745210180504,26.14,140.03,140.01,5.70127474]
[1745210180895,26.14,140.03,140.02,7.1416]
[1745210186204,26.14,140.03,140.01,0.05175877]
[1745210187304,33.2815,140.03,140.01,0.05175877]
[1745210187603,5.70127474,140.02,139.97,5.70127474]
[1745210187903,12.84307474,140.02,139.98,7.1435]
[1745210188605,0.04966961,140.01,139.99,0.04502553]
[1745210190305,7.19196961,140.01,139.99,0.04502553]
[1745210190505,0.04966961,140.01,139.99,0.04502553]
[1745210190805,7.1438,139.98,139.94,7.1454]
[1745210191000,38.96507474,139.98,139.92,5.70127474]
[1745210191198,31.82127474,139.98,139.92,5.70127474]
[1745210191397,26.12,139.98,139.94,5.70127474]
[1745210191902,26.12,139.98,139.95,7.19324457]
[1745210192204,0.04599094,139.97,139.95,7.19324457]
[1745210192405,0.04599094,139.97,139.96,7.1447]
[1745210193803,0.04599094,139.97,139.96,12.84597474]
[1745210193997,21.48,140.06,139.96,12.84597474]
[1745210193998,26.12,140.03,139.96,5.70127474]
[1745210194205,26.12,140.03,139.99,5.70127474]
[1745210194405,26.12,140.03,140.01,5.70127474]
[1745210195107,26.16554407,140.03,140.01,0.04565419]
[1745210198621,7.1416,140.02,140.01,0.04565419]
[1745210198917,26.16554407,140.03,140.01,0.04565419]
[1745210199327,33.30674407,140.03,140.01,0.04565419]
[1745210202820,7.1416,140.02,140.01,0.04565419]
[1745210203217,26.16554407,140.03,139.95,8.84129728]
[1745210203518,7.1427,140.0,139.94,26.12]
[1745210204121,7.1427,140.0,139.97,7.1441]
[1745210204424,0.05406988,140.0,139.97,7.19188845]
[1745210204719,0.05406988,140.0,139.98,7.1435]
[1745210205117,0.05406988,140.0,139.97,0.04778845]
[1745210205318,0.05406988,140.0,139.99,7.1432]
[1745210205618,0.05406988,140.0,139.97,0.04778845]
[1745210206121,0.05406988,140.0,139.97,7.19148845]
[1745210206611,0.05406988,140.0,139.97,0.04778845]
[1745210207619,0.05406988,140.0,139.97,7.19168845]
[1745210207820,0.05406988,140.0,139.97,0.04778845]
[1745210208422,7.19686988,140.0,139.97,0.04778845]
[1745210209421,7.19686988,140.0,139.97,7.19198845]
[1745210212027,0.05406988,140.0,139.98,7.1436]
[1745210215023,0.05406988,140.0,139.97,7.19178845]
[1745210217024,0.05406988,140.0,139.97,0.04778845]
[1745210217234,0.05406988,140.0,139.98,5.6607949]
[1745210217727,0.05406988,140.0,139.98,12.8042949]
[1745210220230,0.05406988,140.0,139.97,7.19188845]
[1745210221225,0.05406988,140.0,139.98,7.1437]
[1745210221433,0.05406988,140.0,139.97,0.04778845]
[1745210221729,0.05406988,140.0,139.99,7.1432]
[1745210239045,26.12,140.03,140.02,7.1416]
[1745210242342,26.12,140.03,140.01,0.05310385]
[1745210242943,26.12,140.03,140.01,7.19490385]
[1745210243245,26.12,140.03,140.01,0.05310385]
[1745210244043,26.12,140.03,140.02,7.1416]
[1745210248548,0.04750744,140.04,140.03,7.1411]
[1745210248749,26.1,140.09,140.06,5.6607949]
[1745210248947,26.1,140.1,140.06,5.6607949]
[1745210249346,26.1,140.1,140.08,7.1381]